[Event "POL-chT 1 Liga 2019"]
[Site "Dzwirzyno"]
[Date "2019.09.10"]
[Round "4.5"]
[White "Tomaszewski, Roman"]
[Black "Kucza, Karol"]
[Result "1/2-1/2"]
[ECO "D02"]
[WhiteElo "2195"]
[BlackElo "2280"]
[Annotator "NA"]
[PlyCount "47"]
[EventDate "2019.09.07"]
[EventType "team-tourn"]
[EventCountry "POL"]
[SourceTitle "playchess.com"]
[Source "ChessBase"]
[SourceQuality "1"]
[TimeControl "40/5400+30:1800+30"]

1. d4 {[%emt 0:00:00]} d5 {[%emt 0:00:36]} 2. Nf3 {[%emt 0:00:00]} Nf6 {[%emt 0:00:13]} 3. Bf4 {[%emt 0:00:00]} c5 {[%emt 0:00:37]} 4. e3 {[%emt 0:00:11]} Nc6 {[%emt 0:00:05]} 5. c3 {[%emt 0:00:31]} Qb6 {[%emt 0:00:16]} 6. Qc1 {[%emt 0:38:06]} Bf5 {[%emt 0:02:26]} 7. Nbd2 {[%emt 0:05:14]} Rc8 {[%emt 0:01:05]} 8. dxc5 {[%emt 0:05:57]} Qxc5 {[%emt 0:00:07]} 9. Nb3 {[%emt 0:01:38]} Qb6 {[%emt 0:00:16]} 10. Nbd4 {[%emt 0:03:22]} Nxd4 {[%emt 0:08:16]} 11. Nxd4 {[%emt 0:00:58]} Bd7 {[%emt 0:00:07]} 12. Be2 {[%emt 0:00:25]} e6 {[%emt 0:02:57]} 13. O-O {[%emt 0:14:34]} Bd6 {[%emt 0:00:33]} 14. Bxd6 {[%emt 0:02:02]} Qxd6 {[%emt 0:00:07]} 15. Qd1 {[%emt 0:08:05]} O-O {[%emt 0:00:19]} 16. Qb3 {[%emt 0:00:03]} Ne4 {[%emt 0:07:38]} 17. Rfd1 {[%emt 0:02:25]} Qc7 {[%emt 0:00:47]} 18. Bb5 {[%emt 0:02:48]} Bxb5 {[%emt 0:03:22]} 19. Nxb5 {[%emt 0:00:06]} Qb6 {[%emt 0:00:06]} 20. Nd4 {[%emt 0:00:13]} Qxb3 {[%emt 0:00:11]} 21. axb3 {[%emt 0:01:37]} a6 {[%emt 0:00:05]} 22. b4 {[%emt 0:00:50]} Nd6 {[%emt 0:00:17]} 23. Nb3 {[%emt 0:00:52]} Rc7 {[%emt 0:00:53]} 24. Ra2 {[%emt 0:02:17]} 1/2-1/2

[Event "POL-chT 1 Liga 2019"]
[Site "Dzwirzyno"]
[Date "2019.09.10"]
[Round "4.6"]
[White "Kantane, Anna"]
[Black "Lach, Aleksandra"]
[Result "1/2-1/2"]
[ECO "C00"]
[WhiteElo "2273"]
[BlackElo "2173"]
[Annotator "NA"]
[PlyCount "43"]
[EventDate "2019.09.07"]
[EventType "team-tourn"]
[EventCountry "POL"]
[SourceTitle "playchess.com"]
[Source "ChessBase"]
[SourceQuality "1"]
[TimeControl "40/5400+30:1800+30"]

1. e4 {[%emt 0:00:00]} e6 {[%emt 0:00:00]} 2. c4 {[%emt 0:03:24]} d5 {[%emt 0:01:35]} 3. cxd5 {[%emt 0:00:09]} exd5 {[%emt 0:00:18]} 4. exd5 {[%emt 0:00:10]} Nf6 {[%emt 0:05:30]} 5. Nc3 {[%emt 0:00:12]} Nxd5 {[%emt 0:02:24]} 6. Nf3 {[%emt 0:00:09]} Nxc3 {[%emt 0:02:27]} 7. bxc3 {[%emt 0:02:57]} Be7 {[%emt 0:03:07]} 8. d4 {[%emt 0:03:20]} c6 {[%emt 0:09:05]} 9. Bd3 {[%emt 0:03:22]} Nd7 {[%emt 0:10:19]} 10. O-O {[%emt 0:02:01]} Nf6 {[%emt 0:01:15]} 11. Re1 {[%emt 0:03:44]} O-O {[%emt 0:02:03]} 12. Rb1 {[%emt 0:09:29]} h6 {[%emt 0:11:55]} 13. Bc2 {[%emt 0:10:41]} Bd6 {[%emt 0:15:19]} 14. Qd3 {[%emt 0:03:29]} Re8 {[%emt 0:02:21]} 15. Rxe8+ {[%emt 0:09:08]} Qxe8 {[%emt 0:01:48]} 16. Bd2 {[%emt 0:00:37]} b5 {[%emt 0:13:40]} 17. Re1 {[%emt 0:07:58]} Qd8 {[%emt 0:00:43]} 18. Ne5 {[%emt 0:10:11]} Bxe5 {[%emt 0:00:58]} 19. Rxe5 {[%emt 0:00:42]} Be6 {[%emt 0:00:43]} 20. Bb1 {[%emt 0:03:13]} Rc8 {[%emt 0:03:21]} 21. Re3 {[%emt 0:02:44]} Qd5 {[%emt 0:02:38]} 22. Re5 {[%emt 0:05:15]} 1/2-1/2

[Event "POL-chT 1 Liga 2019"]
[Site "Dzwirzyno"]
[Date "2019.09.10"]
[Round "4.8"]
[White "Flis, Pawel"]
[Black "Godzwon, Iwo"]
[Result "0-1"]
[ECO "B23"]
[WhiteElo "1897"]
[BlackElo "2265"]
[Annotator "NA"]
[PlyCount "116"]
[EventDate "2019.09.07"]
[EventType "team-tourn"]
[EventCountry "POL"]
[SourceTitle "playchess.com"]
[Source "ChessBase"]
[SourceQuality "1"]
[TimeControl "40/5400+30:1800+30"]

1. e4 {[%emt 0:00:00]} c5 {[%emt 0:00:00]} 2. Nc3 {[%emt 0:00:00]} e6 {[%emt 0:00:00]} 3. g3 {[%emt 0:00:00]} Nc6 {[%emt 0:00:00]} 4. Bg2 {[%emt 0:00:02]} Nf6 {[%emt 0:00:00]} 5. d3 {[%emt 0:00:32]} Be7 {[%emt 0:00:03]} 6. Nge2 {[%emt 0:00:16]} O-O {[%emt 0:00:05]} 7. O-O {[%emt 0:00:13]} Rb8 {[%emt 0:00:02]} 8. a4 {[%emt 0:01:47]} a6 {[%emt 0:00:13]} 9. f4 {[%emt 0:00:59]} d5 {[%emt 0:00:03]} 10. e5 {[%emt 0:08:46]} Nd7 {[%emt 0:00:02]} 11. Kh1 {[%emt 0:05:57]} b5 {[%emt 0:00:04]} 12. axb5 {[%emt 0:00:13]} axb5 {[%emt 0:00:12]} 13. d4 {[%emt 0:04:10]} b4 {[%emt 0:04:43]} 14. Nb1 {[%emt 0:05:43]} cxd4 {[%emt 0:09:27]} 15. Nxd4 {[%emt 0:01:04]} Nxd4 {[%emt 0:04:52]} 16. Qxd4 {[%emt 0:00:06]} Qc7 {[%emt 0:02:11]} 17. Qd1 {[%emt 0:14:43]} Qb6 {[%emt 0:08:28]} 18. Nd2 {[%emt 0:11:54]} Ba6 {[%emt 0:00:18]} 19. Re1 {[%emt 0:04:28]} Bc5 {[%emt 0:01:37]} 20. Nf1 {[%emt 0:03:23]} Ra8 {[%emt 0:10:37]} 21. Bd2 {[%emt 0:05:18]} Rfc8 {[%emt 0:01:07]} 22. Qg4 {[%emt 0:14:54]} Bd4 {[%emt 0:02:24]} 23. c3 {[%emt 0:02:18]} bxc3 {[%emt 0:00:15]} 24. bxc3 {[%emt 0:00:05]} Bxc3 {[%emt 0:00:07]} 25. Bxc3 {[%emt 0:02:16]} Rxc3 {[%emt 0:00:07]} 26. f5 {[%emt 0:03:21]} exf5 {[%emt 0:04:53]} 27. Qxf5 {[%emt 0:00:43]} Qe6 {[%emt 0:00:03]} 28. Bh3 {[%emt 0:03:11]} Qxf5 {[%emt 0:01:44]} 29. Bxf5 {[%emt 0:00:01]} Nc5 {[%emt 0:00:07]} 30. e6 {[%emt 0:03:21]} fxe6 {[%emt 0:07:03]} 31. Bxe6+ {[%emt 0:00:16]} Nxe6 {[%emt 0:00:02]} 32. Rxe6 {[%emt 0:00:18]} Rf3 {[%emt 0:00:01]} 33. Nd2 {[%emt 0:02:44]} Rf2 {[%emt 0:01:27]} 34. Nb3 {[%emt 0:01:05]} Rf1+ {[%emt 0:00:04]} 35. Rxf1 {[%emt 0:00:32]} Bxf1 {[%emt 0:00:04]} 36. Re7 {[%emt 0:00:49]} Bh3 {[%emt 0:01:55]} 37. Kg1 {[%emt 0:00:02]} Ra2 {[%emt 0:02:53]} 38. Re1 {[%emt 0:02:30]} Rg2+ {[%emt 0:02:54]} 39. Kh1 {[%emt 0:00:10]} Rb2 {[%emt 0:00:41]} 40. Nd4 {[%emt 0:00:00]} Rd2 {[%emt 0:00:00]} 41. Nb3 {[%emt 0:07:09]} Ra2 {[%emt 0:08:37]} 42. Kg1 {[%emt 0:03:56]} Kf7 {[%emt 0:00:04]} 43. Nd4 {[%emt 0:01:03]} Rg2+ {[%emt 0:00:20]} 44. Kh1 {[%emt 0:00:09]} Rd2 {[%emt 0:00:06]} 45. Ne2 {[%emt 0:01:04]} Bg4 {[%emt 0:00:17]} 46. Rf1+ {[%emt 0:06:53]} Ke7 {[%emt 0:02:27]} 47. Nc3 {[%emt 0:01:14]} Bh3 {[%emt 0:02:27]} 48. Rd1 {[%emt 0:01:01]} Rxd1+ {[%emt 0:00:34]} 49. Nxd1 {[%emt 0:00:05]} Ke6 {[%emt 0:06:35]} 50. Kg1 {[%emt 0:01:46]} Ke5 {[%emt 0:00:22]} 51. Kf2 {[%emt 0:00:22]} Be6 {[%emt 0:01:23]} 52. Ke3 {[%emt 0:00:18]} d4+ {[%emt 0:00:08]} 53. Kd2 {[%emt 0:01:44]} Ke4 {[%emt 0:00:43]} 54. Nf2+ {[%emt 0:00:50]} Kf3 {[%emt 0:00:05]} 55. Nd3 {[%emt 0:00:07]} Bf5 {[%emt 0:00:06]} 56. Ne5+ {[%emt 0:01:22]} Kg2 {[%emt 0:00:10]} 57. Nc6 {[%emt 0:07:01]} Kxh2 {[%emt 0:00:53]} 58. Nxd4 {[%emt 0:00:12]} Bg4 {[%emt 0:00:02]} 0-1

[Event "POL-chT 1 Liga 2019"]
[Site "Dzwirzyno"]
[Date "2019.09.10"]
[Round "4.9"]
[White "Tofil, Borys"]
[Black "Szmacinski, Slawomir"]
[Result "0-1"]
[ECO "D01"]
[WhiteElo "2202"]
[BlackElo "1848"]
[Annotator "NA"]
[PlyCount "138"]
[EventDate "2019.09.07"]
[EventType "team-tourn"]
[EventCountry "POL"]
[SourceTitle "playchess.com"]
[Source "ChessBase"]
[SourceQuality "1"]
[TimeControl "40/5400+30:1800+30"]

1. d4 {[%emt 0:00:00]} Nf6 {[%emt 0:00:00]} 2. Nc3 {[%emt 0:00:00]} d5 {[%emt 0:00:39]} 3. Bg5 {[%emt 0:00:00]} Nbd7 {[%emt 0:02:32]} 4. Nf3 {[%emt 0:01:35]} e6 {[%emt 0:00:28]} 5. e3 {[%emt 0:10:18]} Be7 {[%emt 0:01:44]} 6. Bd3 {[%emt 0:04:38]} h6 {[%emt 0:02:13]} 7. Bh4 {[%emt 0:00:40]} O-O {[%emt 0:02:27]} 8. Ne2 {[%emt 0:03:36]} c5 {[%emt 0:03:11]} 9. c3 {[%emt 0:00:18]} a6 {[%emt 0:06:26]} 10. O-O {[%emt 0:03:00]} g5 {[%emt 0:04:07]} 11. Bg3 {[%emt 0:03:16]} Ne4 {[%emt 0:05:34]} 12. Nd2 {[%emt 0:03:41]} f5 {[%emt 0:01:10]} 13. Nxe4 {[%emt 0:10:46]} dxe4 {[%emt 0:04:51]} 14. Bc4 {[%emt 0:07:18]} Nb6 {[%emt 0:00:51]} 15. Bb3 {[%emt 0:00:10]} c4 {[%emt 0:00:29]} 16. Bc2 {[%emt 0:00:07]} Nd5 {[%emt 0:00:02]} 17. Be5 {[%emt 0:07:40]} Bd7 {[%emt 0:03:47]} 18. Qd2 {[%emt 0:00:42]} Bc6 {[%emt 0:01:31]} 19. f3 {[%emt 0:01:39]} exf3 {[%emt 0:09:27]} 20. gxf3 {[%emt 0:00:51]} Nf6 {[%emt 0:00:29]} 21. Ng3 {[%emt 0:02:38]} Nd7 {[%emt 0:08:20]} 22. f4 {[%emt 0:05:28]} Nxe5 {[%emt 0:06:14]} 23. fxe5 {[%emt 0:00:02]} g4 {[%emt 0:00:22]} 24. Ne2 {[%emt 0:08:58]} Bg5 {[%emt 0:02:16]} 25. Nf4 {[%emt 0:00:31]} Bxf4 {[%emt 0:02:00]} 26. Rxf4 {[%emt 0:00:05]} Qg5 {[%emt 0:00:07]} 27. Raf1 {[%emt 0:04:31]} Kg7 {[%emt 0:07:38]} 28. Qe2 {[%emt 0:01:21]} h5 {[%emt 0:04:11]} 29. b3 {[%emt 0:09:14]} b5 {[%emt 0:01:34]} 30. bxc4 {[%emt 0:02:30]} bxc4 {[%emt 0:01:27]} 31. a4 {[%emt 0:00:34]} Bd5 {[%emt 0:00:51]} 32. Qf2 {[%emt 0:01:08]} Bf3 {[%emt 0:03:52]} 33. Bd1 {[%emt 0:01:05]} Bd5 {[%emt 0:00:56]} 34. Bc2 {[%emt 0:02:53]} Bf3 {[%emt 0:00:07]} 35. Bd1 {[%emt 0:02:34]} Bd5 {[%emt 0:00:10]} 36. h4 {[%emt 0:01:50]} gxh3+ {[%emt 0:07:00]} 37. Kh2 {[%emt 0:00:12]} Qg2+ {[%emt 0:00:05]} 38. Qxg2+ {[%emt 0:00:05]} hxg2 {[%emt 0:00:06]} 39. Rg1 {[%emt 0:00:16]} Rab8 {[%emt 0:01:12]} 40. Bf3 {[%emt 0:00:00]} Bxf3 {[%emt 0:00:00]} 41. Rxf3 {[%emt 0:01:51]} Rb2 {[%emt 0:01:29]} 42. Rg3+ {[%emt 0:10:18]} Kf7 {[%emt 0:00:18]} 43. R1xg2 {[%emt 0:05:35]} Rxg2+ {[%emt 0:00:23]} 44. Kxg2 {[%emt 0:02:56]} Rb8 {[%emt 0:00:08]} 45. Rg5 {[%emt 0:00:54]} Rb3 {[%emt 0:01:53]} 46. Rxh5 {[%emt 0:00:31]} Rxc3 {[%emt 0:00:05]} 47. Rh7+ {[%emt 0:00:28]} Ke8 {[%emt 0:02:58]} 48. Ra7 {[%emt 0:02:22]} Rxe3 {[%emt 0:00:48]} 49. Rxa6 {[%emt 0:00:09]} Ke7 {[%emt 0:00:10]} 50. Rc6 {[%emt 0:00:37]} c3 {[%emt 0:00:19]} 51. a5 {[%emt 0:03:14]} Rd3 {[%emt 0:00:17]} 52. a6 {[%emt 0:02:17]} Rd2+ 53. Kf3 Ra2 {[%emt 0:06:18]} 54. Ke3 {[%emt 0:02:17]} c2 {[%emt 0:00:07]} 55. Kd2 {[%emt 0:02:15]} Kf7 {[%emt 0:01:48]} 56. Rc7+ {[%emt 0:00:20]} Kg6 {[%emt 0:01:41]} 57. a7 {[%emt 0:00:57]} f4 {[%emt 0:00:22]} 58. Re7 {[%emt 0:01:10]} Kf5 {[%emt 0:00:57]} 59. a8=Q {[%emt 0:02:50]} Rxa8 {[%emt 0:01:16]} 60. Kxc2 {[%emt 0:00:02]} Ra3 61. Kd2 f3 {[%emt 0:01:57]} 62. Rh7 {[%emt 0:01:51]} Kf4 {[%emt 0:00:58]} 63. Rh4+ {[%emt 0:01:23]} Kg3 {[%emt 0:01:52]} 64. Rh6 {[%emt 0:00:26]} Ra2+ {[%emt 0:01:53]} 65. Ke3 {[%emt 0:00:12]} Ra3+ {[%emt 0:01:29]} 66. Kd2 {[%emt 0:00:29]} f2 {[%emt 0:01:01]} 67. Rg6+ {[%emt 0:00:11]} Kf3 {[%emt 0:00:42]} 68. Rf6+ {[%emt 0:00:09]} Kg2 {[%emt 0:00:17]} 69. d5 {[%emt 0:00:42]} exd5 {[%emt 0:00:31]} 0-1

[Event "POL-chT 1 Liga 2019"]
[Site "Dzwirzyno"]
[Date "2019.09.10"]
[Round "4.10"]
[White "Redlich, Bogdan"]
[Black "Kowalski, Maciej"]
[Result "1/2-1/2"]
[ECO "D02"]
[WhiteElo "1600"]
[BlackElo "2095"]
[Annotator "NA"]
[PlyCount "64"]
[EventDate "2019.09.07"]
[EventType "team-tourn"]
[EventCountry "POL"]
[SourceTitle "playchess.com"]
[Source "ChessBase"]
[SourceQuality "1"]
[TimeControl "40/5400+30:1800+30"]

1. d4 {[%emt 0:00:00]} Nf6 {[%emt 0:00:00]} 2. Nf3 {[%emt 0:00:00]} d5 {[%emt 0:00:01]} 3. Bf4 {[%emt 0:00:15]} e6 {[%emt 0:00:09]} 4. e3 {[%emt 0:01:20]} Bd6 {[%emt 0:00:09]} 5. Bg3 {[%emt 0:00:46]} O-O {[%emt 0:00:08]} 6. Bd3 {[%emt 0:00:56]} c5 {[%emt 0:00:30]} 7. c3 {[%emt 0:05:14]} Nc6 {[%emt 0:00:25]} 8. Nbd2 {[%emt 0:02:01]} b6 {[%emt 0:00:47]} 9. O-O {[%emt 0:08:36]} Bb7 {[%emt 0:09:23]} 10. Ne5 {[%emt 0:04:52]} Ne7 {[%emt 0:03:45]} 11. h3 {[%emt 0:12:20]} Nf5 {[%emt 0:10:50]} 12. Bh2 {[%emt 0:13:57]} Qc7 {[%emt 0:09:50]} 13. g4 {[%emt 0:05:19]} Ne7 {[%emt 0:01:36]} 14. f4 {[%emt 0:04:10]} Ne4 {[%emt 0:01:38]} 15. Qc2 {[%emt 0:05:44]} f6 {[%emt 0:02:28]} 16. Nxe4 {[%emt 0:05:23]} dxe4 {[%emt 0:02:10]} 17. Bxe4 {[%emt 0:00:35]} Bxe4 {[%emt 0:00:05]} 18. Qxe4 {[%emt 0:00:10]} cxd4 {[%emt 0:00:08]} 19. exd4 {[%emt 0:00:44]} fxe5 {[%emt 0:01:00]} 20. fxe5 {[%emt 0:00:26]} Ba3 {[%emt 0:00:48]} 21. bxa3 {[%emt 0:01:20]} Qxc3 {[%emt 0:00:38]} 22. Rac1 {[%emt 0:06:56]} Qxh3 {[%emt 0:01:33]} 23. Rf6 {[%emt 0:01:07]} gxf6 {[%emt 0:20:58]} 24. exf6 {[%emt 0:00:33]} Nd5 {[%emt 0:15:49]} 25. Qxe6+ {[%emt 0:01:12]} Rf7 {[%emt 0:01:07]} 26. Rc8+ {[%emt 0:07:23]} Rxc8 {[%emt 0:00:01]} 27. Qxc8+ {[%emt 0:00:10]} Rf8 {[%emt 0:00:02]} 28. Qe6+ {[%emt 0:00:08]} Kh8 {[%emt 0:00:06]} 29. f7 {[%emt 0:00:25]} Rxf7 {[%emt 0:01:15]} 30. Be5+ {[%emt 0:01:37]} Kg8 {[%emt 0:00:39]} 31. Qe8+ {[%emt 0:00:10]} Rf8 {[%emt 0:00:02]} 32. Qe6+ {[%emt 0:00:10]} Rf7 {[%emt 0:00:01]} 1/2-1/2

[Event "POL-chT 1 Liga 2019"]
[Site "Dzwirzyno"]
[Date "2019.09.10"]
[Round "4.11"]
[White "Rogala, Milosz"]
[Black "Kelm, Robert"]
[Result "1-0"]
[ECO "B56"]
[WhiteElo "1788"]
[BlackElo "1585"]
[Annotator "NA"]
[PlyCount "71"]
[EventDate "2019.09.07"]
[EventType "team-tourn"]
[EventCountry "POL"]
[SourceTitle "playchess.com"]
[Source "ChessBase"]
[SourceQuality "1"]
[TimeControl "40/5400+30:1800+30"]

1. e4 {[%emt 0:00:00]} c5 {[%emt 0:00:00]} 2. Nf3 {[%emt 0:01:44]} d6 {[%emt 0:00:00]} 3. d4 {[%emt 0:00:30]} cxd4 {[%emt 0:00:00]} 4. Nxd4 {[%emt 0:01:14]} Nf6 {[%emt 0:00:06]} 5. Nc3 {[%emt 0:00:16]} Nc6 {[%emt 0:00:54]} 6. f3 {[%emt 0:03:23]} a6 {[%emt 0:03:58]} 7. Be3 {[%emt 0:00:42]} e6 {[%emt 0:01:30]} 8. Bc4 {[%emt 0:04:22]} Qc7 {[%emt 0:00:51]} 9. Bb3 {[%emt 0:01:02]} Bd7 {[%emt 0:05:44]} 10. Qd2 {[%emt 0:02:02]} Ne5 {[%emt 0:00:42]} 11. O-O-O {[%emt 0:09:06]} b5 {[%emt 0:03:59]} 12. Bg5 {[%emt 0:05:23]} Nc4 {[%emt 0:02:01]} 13. Bxc4 {[%emt 0:09:32]} Qxc4 {[%emt 0:00:30]} 14. Nb3 {[%emt 0:08:12]} h6 {[%emt 0:14:16]} 15. Bh4 {[%emt 0:01:44]} b4 {[%emt 0:08:14]} 16. Ne2 {[%emt 0:01:55]} a5 {[%emt 0:00:40]} 17. Kb1 {[%emt 0:04:05]} Qc7 {[%emt 0:03:47]} 18. Qd3 {[%emt 0:05:20]} Rb8 {[%emt 0:04:48]} 19. Ned4 {[%emt 0:02:10]} Nh5 {[%emt 0:04:14]} 20. g4 {[%emt 0:05:30]} Nf4 {[%emt 0:02:37]} 21. Qd2 {[%emt 0:00:27]} Ng6 {[%emt 0:00:10]} 22. Bg3 {[%emt 0:01:40]} Ne5 {[%emt 0:01:18]} 23. Qe2 {[%emt 0:08:54]} Nc4 {[%emt 0:03:17]} 24. Rhe1 {[%emt 0:05:16]} a4 {[%emt 0:06:09]} 25. Nd2 {[%emt 0:03:23]} Nxb2 {[%emt 0:04:16]} 26. Kxb2 {[%emt 0:00:26]} Qc3+ {[%emt 0:00:04]} 27. Kb1 {[%emt 0:00:19]} Qxd4 {[%emt 0:00:21]} 28. Nc4 {[%emt 0:01:02]} Qc3 {[%emt 0:10:32]} 29. Bxd6 {[%emt 0:01:00]} Rc8 {[%emt 0:02:19]} 30. Bxf8 {[%emt 0:02:42]} Rxf8 {[%emt 0:08:29]} 31. Nd6+ {[%emt 0:01:45]} Kd8 {[%emt 0:00:07]} 32. Rd3 {[%emt 0:03:13]} Qe5 {[%emt 0:01:35]} 33. f4 {[%emt 0:01:07]} Qxf4 {[%emt 0:00:18]} 34. Nxc8 {[%emt 0:00:08]} Kxc8 {[%emt 0:00:05]} 35. Rd4 {[%emt 0:00:19]} Qb8 {[%emt 0:00:18]} 36. Qa6+ {[%emt 0:00:38]} 1-0

[Event "POL-chT 1 Liga 2019"]
[Site "Dzwirzyno"]
[Date "2019.09.10"]
[Round "4.12"]
[White "Miturova, Magdalena"]
[Black "Gosciniak, Maria"]
[Result "1/2-1/2"]
[ECO "A39"]
[WhiteElo "2219"]
[BlackElo "2132"]
[Annotator "NA"]
[PlyCount "59"]
[EventDate "2019.09.07"]
[EventType "team-tourn"]
[EventCountry "POL"]
[SourceTitle "playchess.com"]
[Source "ChessBase"]
[SourceQuality "1"]
[TimeControl "40/5400+30:1800+30"]

1. Nf3 {[%emt 0:00:00]} c5 {[%emt 0:00:28]} 2. c4 {[%emt 0:00:00]} g6 {[%emt 0:00:11]} 3. Nc3 {[%emt 0:00:01]} Bg7 {[%emt 0:00:04]} 4. g3 {[%emt 0:00:38]} Nc6 {[%emt 0:01:13]} 5. Bg2 {[%emt 0:00:09]} Nf6 {[%emt 0:03:04]} 6. O-O {[%emt 0:02:44]} O-O {[%emt 0:00:26]} 7. d4 {[%emt 0:00:20]} cxd4 {[%emt 0:12:15]} 8. Nxd4 {[%emt 0:00:12]} Nxd4 {[%emt 0:00:38]} 9. Qxd4 {[%emt 0:00:08]} d6 {[%emt 0:00:06]} 10. Qe3 {[%emt 0:20:02]} a6 {[%emt 0:04:49]} 11. Bd2 {[%emt 0:10:43]} Rb8 {[%emt 0:01:56]} 12. a4 {[%emt 0:01:38]} Ng4 {[%emt 0:13:49]} 13. Qa7 {[%emt 0:08:06]} Be6 {[%emt 0:04:14]} 14. Nd5 {[%emt 0:03:14]} Bxd5 {[%emt 0:25:40]} 15. cxd5 {[%emt 0:12:22]} b5 {[%emt 0:11:42]} 16. Qxa6 {[%emt 0:22:05]} Bxb2 {[%emt 0:06:43]} 17. Ra2 {[%emt 0:00:41]} bxa4 {[%emt 0:00:30]} 18. Qxa4 {[%emt 0:00:24]} Nf6 {[%emt 0:01:48]} 19. Qc2 {[%emt 0:09:49]} Bd4 {[%emt 0:04:13]} 20. e3 {[%emt 0:00:13]} Bc5 {[%emt 0:00:05]} 21. Bc3 {[%emt 0:00:32]} Qc7 {[%emt 0:02:46]} 22. Bd4 {[%emt 0:02:58]} Rb5 {[%emt 0:02:42]} 23. Rc1 {[%emt 0:01:36]} Qb6 {[%emt 0:01:04]} 24. Bf1 {[%emt 0:00:17]} Ra5 {[%emt 0:00:09]} 25. Rb2 {[%emt 0:01:41]} Qa7 {[%emt 0:00:12]} 26. Bc3 {[%emt 0:00:55]} Ra3 {[%emt 0:00:15]} 27. Bg2 {[%emt 0:01:02]} Ra8 {[%emt 0:01:08]} 28. Bb4 {[%emt 0:00:42]} Bxb4 {[%emt 0:00:24]} 29. Rxb4 {[%emt 0:00:03]} Ra2 {[%emt 0:00:11]} 30. Rb2 {[%emt 0:00:27]} 1/2-1/2

[Event "POL-chT 1 Liga 2019"]
[Site "Dzwirzyno"]
[Date "2019.09.10"]
[Round "4.17"]
[White "Dzierzak, Radoslaw"]
[Black "Rozycki, Bartlomiej"]
[Result "1-0"]
[ECO "A46"]
[WhiteElo "2253"]
[BlackElo "2200"]
[Annotator "NA"]
[PlyCount "118"]
[EventDate "2019.09.07"]
[EventType "team-tourn"]
[EventCountry "POL"]
[SourceTitle "playchess.com"]
[Source "ChessBase"]
[SourceQuality "1"]
[TimeControl "40/5400+30:1800+30"]

1. d4 {[%emt 0:00:00]} Nf6 {[%emt 0:00:00]} 2. Nf3 {[%emt 0:00:00]} e6 {[%emt 0:00:00]} 3. e3 {[%emt 0:00:14]} b6 {[%emt 0:01:04]} 4. Bd3 {[%emt 0:00:24]} Bb7 {[%emt 0:00:11]} 5. O-O {[%emt 0:00:13]} Be7 6. c4 {[%emt 0:00:33]} d5 {[%emt 0:01:35]} 7. cxd5 {[%emt 0:01:52]} exd5 {[%emt 0:01:01]} 8. Nc3 {[%emt 0:00:17]} O-O {[%emt 0:00:18]} 9. b3 {[%emt 0:00:19]} c5 {[%emt 0:07:41]} 10. Bb2 {[%emt 0:00:30]} Nc6 {[%emt 0:00:06]} 11. Ne2 {[%emt 0:02:02]} Ne4 {[%emt 0:05:41]} 12. Rc1 {[%emt 0:02:22]} Rc8 {[%emt 0:01:17]} 13. a3 {[%emt 0:08:03]} Bf6 {[%emt 0:04:04]} 14. Bb1 {[%emt 0:09:28]} Qe7 {[%emt 0:03:06]} 15. Nf4 {[%emt 0:03:40]} Rfd8 {[%emt 0:04:44]} 16. Nh5 {[%emt 0:01:53]} Ba6 {[%emt 0:11:17]} 17. Nxf6+ {[%emt 0:07:01]} Qxf6 {[%emt 0:00:26]} 18. Bd3 {[%emt 0:01:59]} Bxd3 {[%emt 0:01:01]} 19. Qxd3 {[%emt 0:00:07]} cxd4 {[%emt 0:00:41]} 20. Nxd4 {[%emt 0:12:53]} Ne5 {[%emt 0:12:45]} 21. Qe2 {[%emt 0:06:47]} Rxc1 {[%emt 0:00:34]} 22. Rxc1 {[%emt 0:06:30]} Nd3 {[%emt 0:03:02]} 23. Rf1 {[%emt 0:00:54]} Nxb2 {[%emt 0:01:40]} 24. Qxb2 {[%emt 0:00:05]} Rc8 {[%emt 0:00:40]} 25. f3 {[%emt 0:01:45]} Nd6 {[%emt 0:03:25]} 26. Qd2 {[%emt 0:02:36]} g6 {[%emt 0:02:44]} 27. Rc1 {[%emt 0:04:52]} Rxc1+ {[%emt 0:02:26]} 28. Qxc1 {[%emt 0:00:13]} Qe5 {[%emt 0:00:29]} 29. Nc6 {[%emt 0:04:15]} Qg5 {[%emt 0:05:05]} 30. Qc3 {[%emt 0:01:49]} a6 {[%emt 0:12:12]} 31. Qe5 {[%emt 0:05:04]} Qxe5 {[%emt 0:05:49]} 32. Nxe5 {[%emt 0:00:03]} Ne8 {[%emt 0:00:13]} 33. Kf2 {[%emt 0:03:32]} f6 {[%emt 0:01:03]} 34. Nd7 {[%emt 0:00:36]} b5 {[%emt 0:00:10]} 35. Ke2 {[%emt 0:03:45]} Kf7 {[%emt 0:00:22]} 36. Nc5 {[%emt 0:01:28]} a5 {[%emt 0:05:31]} 37. Kd3 {[%emt 0:01:08]} Nd6 {[%emt 0:03:27]} 38. Kd4 {[%emt 0:04:09]} Nf5+ {[%emt 0:00:07]} 39. Kxd5 {[%emt 0:00:38]} Nxe3+ {[%emt 0:00:07]} 40. Kc6 {[%emt 0:00:00]} b4 {[%emt 0:00:00]} 41. a4 {[%emt 0:03:50]} Nxg2 {[%emt 0:00:33]} 42. Kb6 {[%emt 0:01:09]} Ke7 {[%emt 0:18:24]} 43. Kxa5 {[%emt 0:00:34]} Kd6 {[%emt 0:00:16]} 44. Kxb4 {[%emt 0:02:29]} Kc6 {[%emt 0:00:16]} 45. Ne4 {[%emt 0:01:31]} f5 {[%emt 0:02:21]} 46. Nd2 {[%emt 0:01:18]} Ne3 {[%emt 0:04:55]} 47. Kc3 {[%emt 0:02:28]} Kd5 {[%emt 0:00:05]} 48. b4 {[%emt 0:01:37]} g5 {[%emt 0:00:25]} 49. a5 {[%emt 0:01:06]} g4 {[%emt 0:00:59]} 50. Kd3 {[%emt 0:00:40]} Nd1 {[%emt 0:04:10]} 51. b5 {[%emt 0:01:37]} gxf3 {[%emt 0:01:35]} 52. a6 {[%emt 0:01:45]} Nb2+ {[%emt 0:00:06]} 53. Kc3 {[%emt 0:00:18]} Na4+ {[%emt 0:00:36]} 54. Kb4 {[%emt 0:00:13]} Nb6 {[%emt 0:00:08]} 55. Nxf3 {[%emt 0:00:19]} f4 {[%emt 0:03:02]} 56. Nd2 {[%emt 0:01:43]} Na8 {[%emt 0:00:45]} 57. Ka5 {[%emt 0:00:20]} Kc5 {[%emt 0:02:21]} 58. Ne4+ {[%emt 0:01:01]} Kd4 {[%emt 0:00:15]} 59. b6 {[%emt 0:00:24]} Kxe4 1-0